bitfinex/quotes_BTCUSD_20240818
["timestamp","ask_amount","ask_price","bid_price","bid_amount"]
[1723980713114,1.41951892,59988.0,59987.0,0.1380005]
[1723980713654,1.50551892,59988.0,59987.0,0.1380005]
[1723980713838,1.41849374,59988.0,59987.0,0.1380005]
[1723980714296,1.40449374,59988.0,59987.0,0.1380005]
[1723980714616,1.41749374,59988.0,59987.0,0.1380005]
[1723980715270,1.51754945,59988.0,59987.0,0.1380005]
[1723980715614,1.41749374,59988.0,59987.0,0.1380005]
[1723980719255,1.54256812,59988.0,59987.0,0.1380005]
[1723980719460,1.41749374,59988.0,59987.0,0.1380005]
[1723980719872,1.51755713,59988.0,59987.0,0.1380005]
[1723980721083,1.51755763,59988.0,59987.0,0.1380005]
[1723980721385,0.37607,59988.0,59987.0,0.1380005]
[1723980721608,0.60945,59988.0,59987.0,0.1380005]
[1723980722235,0.59645,59988.0,59987.0,0.1380005]
[1723980723079,0.36307,59988.0,59987.0,0.1380005]
[1723980723280,0.35007,59988.0,59987.0,0.1380005]
[1723980723480,0.35007,59988.0,59987.0,0.15180055]
[1723980723682,0.36107,59988.0,59987.0,0.15180055]
[1723980723946,0.36107,59988.0,59987.0,0.16256102]
[1723980724125,0.35007,59988.0,59987.0,0.16256102]
[1723980724276,0.11669,59988.0,59987.0,0.16356102]
[1723980724476,0.35007,59988.0,59987.0,0.16356102]
[1723980724677,0.000826,59989.0,59988.0,0.11769]
[1723980724902,0.000826,59989.0,59988.0,0.27628127]
[1723980725082,0.000826,59989.0,59988.0,0.50966127]
[1723980725299,0.000826,59989.0,59988.0,0.27628127]
[1723980725736,0.000826,59989.0,59988.0,0.27328127]
[1723980725902,0.000826,59989.0,59988.0,0.15959127]
[1723980726141,0.000826,59989.0,59988.0,0.27628127]
[1723980726299,0.000826,59989.0,59988.0,0.15959127]
[1723980726701,0.000826,59989.0,59988.0,0.27628127]
[1723980727378,0.002826,59989.0,59988.0,0.27828127]
[1723980727527,0.001826,59989.0,59988.0,0.27628127]
[1723980727851,0.000826,59989.0,59988.0,0.50666127]
[1723980728053,0.116675,59996.0,59991.0,0.116683]
[1723980728208,0.116676,59995.0,59994.0,0.0783]
[1723980728408,0.116676,59995.0,59994.0,0.1425]
[1723980728643,0.116676,59995.0,59994.0,0.1564644]
[1723980728808,0.000825,60000.0,59995.0,0.1425]
[1723980729012,0.233341,59998.0,59996.0,0.00333296]
[1723980729221,0.233341,59998.0,59997.0,0.1425]
[1723980729693,0.000825,60000.0,59998.0,0.1425]
[1723980729931,0.000825,60000.0,59999.0,0.14583294]
[1723980730139,0.000825,60000.0,59999.0,0.15300839]
[1723980730140,0.117491,60000.0,59999.0,0.15300839]
[1723980730576,0.350824,60000.0,59999.0,0.15300839]
[1723980730924,0.355824,60000.0,59999.0,0.15300839]
[1723980731490,0.363824,60000.0,59999.0,0.15300839]
[1723980731850,0.355824,60000.0,59999.0,0.15300839]
[1723980732152,0.350824,60000.0,59999.0,0.16830923]
[1723980733243,0.350824,60000.0,59999.0,0.17030923]
[1723980733625,0.350824,60000.0,59999.0,0.16830923]
[1723980733826,0.584157,60000.0,59999.0,0.17130923]
[1723980734021,0.584157,60000.0,59999.0,0.15800839]
[1723980734409,0.584157,60000.0,59999.0,0.1475]
[1723980734630,0.584157,60000.0,59999.0,0.1455]
[1723980735059,0.584157,60000.0,59999.0,0.1475]
[1723980735316,0.584157,60000.0,59999.0,0.1445]
[1723980735520,0.584157,60000.0,59999.0,0.1425]
[1723980735940,0.585157,60000.0,59999.0,0.15675]
[1723980737533,0.81849,60000.0,59999.0,0.1425]
[1723980738499,0.81749,60000.0,59999.0,0.1425]
[1723980738606,0.81849,60000.0,59999.0,0.1425]
[1723980739532,0.81749,60000.0,59999.0,0.1425]
[1723980740498,0.58337,59996.0,59995.0,0.0753]
[1723980740698,0.58337,59996.0,59987.0,5e-07]
[1723980740699,0.03,59996.0,59987.0,5e-07]
[1723980740848,0.58345,59988.0,59987.0,5e-07]
[1723980741050,0.58345,59988.0,59987.0,0.0641005]
[1723980741051,0.81683,59988.0,59987.0,0.0641005]
[1723980741259,0.81683,59988.0,59987.0,0.1394005]
[1723980741932,0.81683,59988.0,59987.0,0.1344005]
[1723980742248,0.81683,59988.0,59987.0,0.14784055]
[1723980742384,0.583487,59984.0,59983.0,0.0753]
[1723980742586,0.683487,59984.0,59983.0,0.0753]
[1723980743449,0.916882,59984.0,59983.0,0.0753]
[1723980743886,0.583507,59982.0,59980.0,0.0753]
[1723980744251,0.583507,59982.0,59981.0,0.01962068]
[1723980744252,0.81691,59982.0,59981.0,0.01962068]
[1723980744723,0.81691,59982.0,59981.0,0.009075]
[1723980745192,0.81691,59982.0,59981.0,0.073175]
[1723980747057,0.82191,59982.0,59981.0,0.073175]
[1723980747924,0.82591,59982.0,59981.0,0.073175]
[1723980748259,0.592507,59982.0,59981.0,0.0880225]
[1723980748655,0.82591,59982.0,59981.0,0.0880225]
[1723980749262,0.82591,59982.0,59981.0,0.073175]
[1723980753768,0.82091,59982.0,59981.0,0.073175]
[1723980754126,0.82591,59982.0,59981.0,0.073175]
[1723980754338,0.82191,59982.0,59981.0,0.073175]
[1723980754740,0.82591,59982.0,59981.0,0.073175]
[1723980755008,0.82091,59982.0,59981.0,0.073175]
[1723980755137,0.81691,59982.0,59981.0,0.073175]
[1723980755542,0.82091,59982.0,59981.0,0.0880225]
[1723980756396,0.82591,59982.0,59981.0,0.0880225]
[1723980758028,0.82591,59982.0,59981.0,0.073175]
[1723980768177,0.82591,59982.0,59981.0,0.009075]
[1723980770346,1.059313,59982.0,59981.0,0.009075]
[1723980770551,0.82591,59982.0,59981.0,0.009075]
[1723980780777,0.82591,59982.0,59981.0,0.157075]
[1723980780975,0.82591,59982.0,59981.0,0.1727825]
[1723980781454,0.82591,59982.0,59981.0,0.157075]
[1723980782036,0.82591,59982.0,59981.0,0.074875]
[1723980782300,0.82591,59982.0,59981.0,0.009075]
[1723980785380,0.93271,59982.0,59981.0,0.009075]
[1723980787234,1.00752218,59982.0,59981.0,0.009075]
[1723980787440,1.38671573,59982.0,59981.0,0.009075]
[1723980787641,1.330013,59982.0,59981.0,0.009075]
[1723980787803,1.45469996,59982.0,59981.0,0.009075]
[1723980788003,1.330013,59982.0,59981.0,0.009075]
[1723980788367,1.08059696,59982.0,59981.0,0.009075]
[1723980788566,0.95191,59982.0,59981.0,0.157075]
[1723980788737,0.94691,59982.0,59981.0,0.1727825]
[1723980788954,1.06079585,59982.0,59981.0,0.1737825]
[1723980789137,1.06079585,59982.0,59981.0,0.1727825]
[1723980789329,1.04679585,59982.0,59981.0,0.1727825]
[1723980789550,1.05979585,59982.0,59981.0,0.1737825]
[1723980789948,0.94691,59982.0,59981.0,0.157075]
[1723980790148,0.96091,59982.0,59981.0,0.157075]
[1723980790348,1.07279585,59982.0,59981.0,0.158075]
[1723980790797,1.05879585,59982.0,59981.0,0.158075]
[1723980791385,1.06679585,59982.0,59981.0,0.158075]
[1723980791776,1.04679585,59982.0,59981.0,0.157075]
[1723980792148,1.05479585,59982.0,59981.0,0.157075]
[1723980792327,1.02479585,59982.0,59981.0,0.157075]
[1723980793274,1.03179585,59982.0,59981.0,0.157075]
[1723980793719,1.03182424,59982.0,59981.0,0.157075]
[1723980794126,0.93191,59982.0,59981.0,0.157075]
[1723980794323,0.98187017,59982.0,59981.0,0.157075]
[1723980794702,0.98187017,59982.0,59981.0,0.1727825]
[1723980794975,0.98187503,59982.0,59981.0,0.1727825]
[1723980796111,0.98187503,59982.0,59981.0,0.157075]
[1723980798305,0.9818904,59982.0,59981.0,0.157075]
[1723980798558,0.9818904,59982.0,59981.0,0.074875]
[1723980799183,1.0068806,59982.0,59981.0,0.074875]
[1723980799378,0.93191,59982.0,59981.0,0.074875]
[1723980799605,0.98189186,59982.0,59981.0,0.074875]
[1723980803268,0.98188872,59982.0,59981.0,0.074875]
[1723980803405,0.93191,59982.0,59981.0,0.074875]
[1723980804873,0.98187589,59982.0,59981.0,0.074875]
[1723980805072,0.98187589,59982.0,59981.0,0.009075]
[1723980805276,0.93191,59982.0,59981.0,0.009075]
[1723980809569,1.312813,59982.0,59981.0,0.009075]
[1723980809777,1.4427738,59982.0,59981.0,0.009075]
[1723980809981,1.342813,59982.0,59981.0,0.009075]
[1723980810187,1.467764,59982.0,59981.0,0.009075]
[1723980810763,1.460764,59982.0,59981.0,0.009075]
[1723980811479,1.452764,59982.0,59981.0,0.009075]
[1723980811915,1.462764,59982.0,59981.0,0.009075]
[1723980812333,1.47166619,59982.0,59981.0,0.009075]
[1723980812645,1.346813,59982.0,59981.0,0.009075]
[1723980813075,1.44665713,59982.0,59981.0,0.009075]
[1723980813293,1.346813,59982.0,59981.0,0.009075]
[1723980813993,1.47166619,59982.0,59981.0,0.009075]
[1723980814379,1.23826319,59982.0,59981.0,0.009075]
[1723980814956,1.47166619,59982.0,59981.0,0.009075]
[1723980815174,1.346813,59982.0,59981.0,0.009075]
[1723980816266,1.44664437,59982.0,59981.0,0.009075]
[1723980816695,1.44623637,59982.0,59981.0,0.009075]
[1723980816924,1.44623598,59982.0,59981.0,0.009075]
[1723980817798,1.44625212,59982.0,59981.0,0.009075]
[1723980818229,1.346405,59982.0,59981.0,0.009075]
[1723980818447,1.113002,59982.0,59981.0,0.009075]
[1723980819096,1.346405,59982.0,59981.0,0.009075]
[1723980820436,1.47122851,59982.0,59981.0,0.009075]
[1723980821608,1.23782551,59982.0,59981.0,0.009075]
[1723980822628,1.14737323,59982.0,59981.0,0.009075]
[1723980822828,1.06537323,59982.0,59981.0,0.009075]
[1723980823117,1.09034376,59982.0,59981.0,0.0243825]
[1723980823328,1.01544012,59982.0,59981.0,0.0243825]
[1723980823526,0.965502,59982.0,59981.0,0.0243825]
[1723980824600,0.119,59982.0,59981.0,0.1683825]
[1723980824810,0.019,59982.0,59981.0,0.17171678]
[1723980825021,0.019,59982.0,59981.0,0.2850855]
[1723980825422,0.019,59982.0,59981.0,0.28841943]
[1723980825617,0.019,59982.0,59981.0,0.17171643]
[1723980825794,0.01,59982.0,59981.0,0.75523343]
[1723980825998,0.000825,59987.0,59984.0,0.116697]
[1723980826155,0.000825,59987.0,59985.0,0.14733368]
[1723980826355,0.000825,59987.0,59986.0,0.144]
[1723980827018,0.117516,59987.0,59986.0,0.144]
[1723980827775,0.350899,59987.0,59986.0,0.144]
[1723980828181,0.117516,59987.0,59986.0,0.144]
[1723980828572,0.117516,59987.0,59986.0,0.146]
[1723980829413,0.350899,59987.0,59986.0,0.146]
[1723980829814,0.350899,59987.0,59986.0,0.147]
[1723980830013,0.350899,59987.0,59986.0,0.1617]
[1723980830463,0.350899,59987.0,59986.0,0.147]
[1723980831897,0.584282,59987.0,59986.0,0.147]
[1723980833684,0.584282,59987.0,59986.0,0.003]
[1723980837537,0.584282,59987.0,59986.0,0.002]
[1723980837947,0.817665,59987.0,59986.0,0.002]
[1723980838126,0.583487,59984.0,59983.0,0.0799]
[1723980838326,0.350104,59982.0,59981.0,0.009075]
[1723980838536,0.583507,59982.0,59981.0,0.009075]
[1723980838748,0.81691,59982.0,59981.0,0.009075]
[1723980839311,0.81691,59982.0,59981.0,0.088975]
[1723980839674,0.81691,59982.0,59981.0,0.1043025]
[1723980839874,0.81691,59982.0,59981.0,0.1053025]
[1723980840111,0.81691,59982.0,59981.0,0.0274025]
[1723980840306,0.81691,59982.0,59981.0,0.012075]
[1723980845856,0.81691,59982.0,59981.0,0.076375]
[1723980847477,0.350104,59982.0,59981.0,0.156275]
[1723980851050,0.350929,59982.0,59981.0,0.156275]
[1723980851272,0.350929,59982.0,59981.0,0.1719025]
[1723980851521,0.584332,59982.0,59981.0,0.1719025]
[1723980852899,0.350929,59982.0,59981.0,0.1719025]
[1723980854662,0.350929,59982.0,59981.0,0.156275]
[1723980856644,0.584332,59982.0,59981.0,0.156275]
[1723980856872,0.350929,59982.0,59981.0,0.156275]
[1723980857577,0.584332,59982.0,59981.0,0.156275]
[1723980857856,0.350929,59982.0,59981.0,0.156275]
[1723980858069,0.350929,59982.0,59981.0,0.1719025]
[1723980858530,0.584332,59982.0,59981.0,0.1719025]
[1723980859185,0.350929,59982.0,59981.0,0.1719025]
[1723980859599,0.584332,59982.0,59981.0,0.1719025]
[1723980860495,0.350929,59982.0,59981.0,0.1719025]
[1723980861006,0.584332,59982.0,59981.0,0.1719025]
[1723980863494,0.350929,59982.0,59981.0,0.1719025]
[1723980864266,0.000825,59982.0,59981.0,0.1719025]
[1723980864478,0.000825,59982.0,59981.0,0.19257958]
[1723980864685,0.000825,59982.0,59981.0,0.19591346]
[1723980865329,0.117526,59982.0,59981.0,0.19591346]
[1723980865524,0.117526,59982.0,59981.0,0.19157958]
[1723980865869,0.118526,59982.0,59981.0,0.19257958]
[1723980866081,0.118526,59982.0,59981.0,0.1719025]
[1723980866419,0.117526,59982.0,59981.0,0.1709025]
[1723980867259,0.117526,59982.0,59981.0,0.1689025]
[1723980867933,0.118526,59982.0,59981.0,0.1729025]
[1723980868143,0.352929,59982.0,59981.0,0.1789025]
[1723980868350,0.351929,59982.0,59981.0,0.015075]
[1723980868769,0.352929,59982.0,59981.0,0.022075]
[1723980868983,0.351929,59982.0,59981.0,0.016075]
[1723980869385,0.350929,59982.0,59981.0,0.009075]
[1723980869588,0.351929,59982.0,59981.0,0.015075]
[1723980869789,0.351929,59982.0,59981.0,0.0301025]
[1723980870378,0.352929,59982.0,59981.0,0.0371025]
[1723980870572,0.882535,59982.0,59981.0,0.022075]
[1723980870773,0.882535,59982.0,59981.0,0.015075]
[1723980870774,0.959035,59982.0,59981.0,0.015075]
[1723980871175,0.959035,59982.0,59981.0,0.021075]
[1723980871176,1.268369,59982.0,59981.0,0.021075]
[1723980871383,1.193438,59982.0,59981.0,0.021075]
[1723980871584,1.26731791,59982.0,59981.0,0.015075]
[1723980871818,1.292346,59982.0,59981.0,0.015075]
[1723980871989,1.291346,59982.0,59981.0,0.013075]
[1723980872195,1.291346,59982.0,59981.0,0.014075]
[1723980872351,1.29127804,59982.0,59981.0,0.014075]
[1723980872549,1.191438,59982.0,59981.0,0.010075]
[1723980872748,1.200438,59982.0,59981.0,0.010075]
[1723980873178,0.967035,59982.0,59981.0,0.010075]
[1723980874005,0.967035,59982.0,59981.0,0.009075]
[1723980874482,0.978035,59982.0,59981.0,0.010075]
[1723980876048,0.915235,59982.0,59981.0,0.010075]
[1723980876501,0.583555,59977.0,59976.0,0.049975]
[1723980876799,0.583555,59977.0,59976.0,0.023]
[1723980877133,0.583565,59976.0,59975.0,0.023]
[1723980877527,0.233422,59977.0,59971.0,0.0767]
[1723980877528,0.35016,59973.0,59972.0,0.023]
[1723980879545,0.583601,59973.0,59972.0,0.023]
[1723980879992,0.817042,59973.0,59972.0,0.023]
[1723980880988,0.817042,59973.0,59972.0,0.026]
[1723980881186,0.817042,59973.0,59972.0,0.025]
[1723980881597,0.817042,59973.0,59972.0,0.023]
[1723980881849,0.817042,59973.0,59972.0,0.024]
[1723980882217,0.821042,59973.0,59972.0,0.023]
[1723980882417,0.817042,59973.0,59972.0,0.023]
[1723980883858,0.824042,59973.0,59972.0,0.023]
[1723980884053,0.820042,59973.0,59972.0,0.023]
[1723980884446,0.818042,59973.0,59972.0,0.023]
[1723980884990,0.819042,59973.0,59972.0,0.023]
[1723980886971,0.585601,59973.0,59972.0,0.0856]
[1723980887172,0.585601,59973.0,59972.0,0.10181]
[1723980887367,0.585601,59973.0,59972.0,0.1027175]
[1723980888170,0.585601,59973.0,59972.0,0.0401175]
[1723980888371,0.819042,59973.0,59972.0,0.0239075]
[1723980888575,0.585601,59973.0,59972.0,0.0009075]
[1723980889728,0.819042,59973.0,59972.0,0.0009075]
[1723980889874,0.585601,59973.0,59972.0,0.0009075]
[1723980890074,0.819042,59973.0,59972.0,0.0009075]
[1723980890826,0.883742,59973.0,59972.0,0.0009075]
[1723980890976,0.960942,59973.0,59972.0,0.0009075]
[1723980894163,0.585601,59973.0,59972.0,0.0791075]
[1723980894393,0.585601,59973.0,59972.0,0.11233825]
[1723980894607,0.585601,59973.0,59972.0,0.17863825]
[1723980894974,0.585601,59973.0,59972.0,0.1684075]
[1723980896182,0.819042,59973.0,59972.0,0.1684075]
[1723980896336,0.585601,59973.0,59972.0,0.1684075]
[1723980899506,0.585601,59973.0,59972.0,0.0902075]
[1723980899868,0.585601,59973.0,59972.0,0.0239075]
[1723980899869,0.727501,59973.0,59972.0,0.0239075]
[1723980900042,0.727501,59973.0,59972.0,0.0009075]
[1723980904822,0.662801,59973.0,59972.0,0.0009075]
[1723980907586,0.896242,59973.0,59972.0,0.0009075]
[1723980908971,0.819042,59973.0,59972.0,0.0009075]
[1723980912512,0.585601,59973.0,59972.0,0.0009075]
[1723980912757,0.585601,59973.0,59972.0,0.01612173]
[1723980913105,0.585601,59973.0,59972.0,0.0239075]
[1723980913549,0.585601,59973.0,59972.0,0.0009075]
[1723980917112,0.585601,59973.0,59972.0,0.0638075]
[1723980917312,0.585601,59973.0,59972.0,0.0868075]
[1723980922868,0.58519964,59973.0,59972.0,0.0868075]
[1723980923045,0.58519964,59973.0,59972.0,0.10381825]
[1723980923504,1.19677864,59973.0,59972.0,0.0009075]
[1723980923651,1.11320481,59973.0,59972.0,0.0009075]
[1723980925888,1.11319139,59973.0,59972.0,0.0009075]
[1723980926732,0.96849139,59973.0,59972.0,0.0009075]
[1723980927540,0.91863764,59973.0,59972.0,0.0009075]
[1723980927740,0.96849139,59973.0,59972.0,0.0009075]
[1723980928062,0.91863764,59973.0,59972.0,0.0009075]
[1723980928809,0.91863764,59973.0,59972.0,0.1469075]
[1723980929018,0.91863764,59973.0,59972.0,0.18461825]
[1723980929457,0.91863764,59973.0,59972.0,0.10151825]
[1723980929657,0.91863764,59973.0,59972.0,0.03861825]
[1723980931378,0.91863764,59973.0,59972.0,0.02348874]
[1723980931667,0.11831764,59973.0,59972.0,0.00048874]
[1723980931870,0.11831764,59973.0,59972.0,0.07778874]
[1723980932089,0.11831764,59973.0,59972.0,0.10680591]
[1723980932293,0.11831764,59973.0,59972.0,0.18858558]
[1723980932624,0.11831764,59973.0,59972.0,0.18858544]
[1723980932849,0.35175564,59973.0,59972.0,0.18858544]
[1723980933224,0.35175564,59973.0,59972.0,0.16790591]
[1723980933950,0.35175564,59973.0,59972.0,0.18858557]
[1723980934329,0.35175564,59973.0,59972.0,0.16790591]
[1723980941698,0.58519364,59973.0,59972.0,0.02950591]
[1723980942039,0.58519364,59973.0,59972.0,0.02348874]
[1723980942293,0.58519364,59973.0,59972.0,0.00650167]
[1723980942492,0.58519364,59973.0,59972.0,0.02950167]
[1723980943433,0.58519364,59973.0,59972.0,0.02348874]
[1723980944257,0.58519364,59973.0,59972.0,0.00048874]
[1723980947927,0.58601864,59973.0,59972.0,0.00048874]
[1723980952230,0.66211864,59973.0,59972.0,0.00048874]
[1723980952413,0.72551864,59973.0,59972.0,0.00048874]
[1723980952665,1.05895664,59973.0,59972.0,0.00048874]
[1723980953635,1.10881824,59973.0,59972.0,0.00048874]
[1723980954069,0.68601864,59973.0,59972.0,0.00048874]
[1723980957083,1.05895664,59973.0,59972.0,0.00048874]
[1723980957356,1.08895664,59973.0,59972.0,0.00048874]
[1723980960619,1.13886048,59973.0,59972.0,0.00048874]
[1723980960846,1.08895664,59973.0,59972.0,0.00048874]
[1723980961359,1.13886048,59973.0,59972.0,0.00048874]
[1723980962118,1.08895664,59973.0,59972.0,0.00048874]
[1723980962515,0.79211864,59973.0,59972.0,0.00048874]
[1723980962708,0.71601864,59973.0,59972.0,0.00048874]
[1723980963178,0.94945664,59973.0,59972.0,0.00048874]
[1723980963321,0.68601864,59973.0,59972.0,0.00048874]
[1723980964118,0.68601864,59973.0,59972.0,0.01668761]
[1723980965201,0.91945664,59973.0,59972.0,0.00048874]
[1723980970364,1.06155664,59973.0,59972.0,0.00048874]
[1723980972452,1.11144559,59973.0,59972.0,0.00048874]
[1723980972589,1.06155664,59973.0,59972.0,0.00048874]
[1723980973000,1.11146587,59973.0,59972.0,0.00048874]
[1723980973407,1.06155664,59973.0,59972.0,0.00048874]
[1723980973606,1.11146479,59973.0,59972.0,0.00048874]
[1723980975057,1.06155664,59973.0,59972.0,0.00048874]
[1723980975247,1.11147077,59973.0,59972.0,0.00048874]
[1723980975447,1.06155664,59973.0,59972.0,0.00048874]
[1723980975885,1.13642186,59973.0,59972.0,0.00048874]
[1723980976332,1.29499464,59973.0,59972.0,0.00048874]
[1723980976709,1.41976501,59973.0,59972.0,0.00048874]
[1723980977088,1.41876501,59973.0,59972.0,0.00048874]
[1723980977313,1.41776501,59973.0,59972.0,0.00048874]
[1723980977545,1.42176501,59973.0,59972.0,0.00048874]
[1723980977769,1.42876501,59973.0,59972.0,0.00148874]
[1723980978009,1.42176501,59973.0,59972.0,0.00048874]
[1723980978260,1.42976501,59973.0,59972.0,0.00148874]
[1723980979125,1.42866816,59973.0,59972.0,0.00148874]
[1723980979586,1.42766816,59973.0,59972.0,0.00048874]
[1723980980101,1.42966816,59973.0,59972.0,0.00048874]
[1723980980237,1.43266816,59973.0,59972.0,0.00048874]
[1723980980666,1.44666816,59973.0,59972.0,0.00048874]
[1723980980882,1.21323016,59973.0,59972.0,0.00048874]
[1723980981238,1.08845979,59973.0,59972.0,0.00048874]
[1723980981749,1.32189779,59973.0,59972.0,0.00048874]
[1723980981952,1.47262224,59973.0,59972.0,0.00048874]
[1723980982152,1.47462224,59973.0,59972.0,0.00048874]
[1723980982402,1.32489779,59973.0,59972.0,0.00048874]
[1723980982833,1.30989779,59973.0,59972.0,0.00048874]
[1723980982973,1.31089779,59973.0,59972.0,0.00048874]
[1723980983175,1.48145233,59973.0,59972.0,0.00048874]
[1723980983385,1.30989779,59973.0,59972.0,0.00048874]
[1723980983579,1.32389779,59973.0,59972.0,0.00148874]
[1723980983783,1.30989779,59973.0,59972.0,0.00148874]
[1723980983995,1.29589779,59973.0,59972.0,0.00048874]
[1723980984195,1.31289779,59973.0,59972.0,0.00048874]
[1723980984506,1.32689779,59973.0,59972.0,0.00148874]
[1723980984704,1.31289779,59973.0,59972.0,0.00048874]
[1723980984930,1.30989779,59973.0,59972.0,0.00048874]
[1723980985872,1.07645979,59973.0,59972.0,0.00048874]
[1723980986119,1.01205979,59973.0,59972.0,0.00048874]
[1723980986321,1.13670362,59973.0,59972.0,0.00048874]
[1723980986498,1.18778359,59973.0,59972.0,0.00048874]
[1723980986922,1.15978359,59973.0,59972.0,0.00048874]
[1723980987074,1.06005979,59973.0,59972.0,0.00048874]
[1723980987274,1.08805979,59973.0,59972.0,0.00048874]
[1723980987695,1.02605979,59973.0,59972.0,0.00048874]
[1723980989394,1.02315664,59973.0,59972.0,0.00048874]
[1723980990884,1.12286446,59973.0,59972.0,0.00048874]
[1723980991099,1.02315664,59973.0,59972.0,0.00048874]
[1723980991682,1.04516495,59973.0,59972.0,0.00048874]
[1723980992049,1.08695664,59973.0,59972.0,0.00048874]
[1723980992253,1.18666528,59973.0,59972.0,0.00048874]
[1723980992449,1.27249778,59973.0,59972.0,0.00048874]
[1723980993265,1.50593578,59973.0,59972.0,0.00048874]
[1723980994425,1.38129464,59973.0,59972.0,0.00048874]
[1723980999603,1.61473264,59973.0,59972.0,0.00048874]
[1723981000260,1.60073264,59973.0,59972.0,0.00048874]
[1723981000468,1.35329464,59973.0,59972.0,0.00048874]
[1723981000655,1.36729464,59973.0,59972.0,0.00048874]
[1723981001088,1.36729464,59973.0,59971.0,0.0002]
[1723981001089,1.053489,59972.0,59971.0,7.4e-07]
[1723981001278,1.528431,59972.0,59971.0,7.4e-07]
[1723981001480,1.530431,59972.0,59971.0,7.4e-07]
[1723981002582,1.525431,59972.0,59971.0,7.4e-07]
[1723981003648,1.554431,59972.0,59971.0,7.4e-07]
[1723981003848,1.556431,59972.0,59971.0,7.4e-07]
[1723981004259,1.72998554,59972.0,59971.0,7.4e-07]
[1723981004464,1.95942754,59972.0,59971.0,7.4e-07]
[1723981004668,1.72598554,59972.0,59971.0,7.4e-07]
[1723981005295,1.96142754,59972.0,59971.0,7.4e-07]
[1723981005698,1.791873,59972.0,59971.0,7.4e-07]
[1723981006099,1.790873,59972.0,59971.0,7.4e-07]
[1723981006307,1.791873,59972.0,59971.0,7.4e-07]
[1723981006461,1.222268,59956.0,59955.0,0.009086]
[1723981006669,1.322268,59956.0,59955.0,0.009086]
[1723981006873,1.28042393,59956.0,59955.0,0.009086]
[1723981007074,1.25551228,59956.0,59955.0,0.149886]
[1723981007252,1.322268,59956.0,59955.0,0.009086]
[1723981007771,1.42190768,59956.0,59955.0,0.009086]
[1723981008340,1.555772,59956.0,59955.0,0.009086]
[1723981009134,1.569772,59956.0,59955.0,0.009086]
[1723981009321,1.569772,59956.0,59951.0,0.0002]
[1723981009322,1.62586,59952.0,59951.0,0.0002]
[1723981009525,1.61682333,59952.0,59951.0,0.0002]
[1723981009726,1.49234,59952.0,59951.0,0.0002]
[1723981009899,1.42614,59952.0,59951.0,0.0002]
[1723981010100,1.52862866,59952.0,59951.0,0.0002]
[1723981010311,1.50371713,59952.0,59951.0,0.0002]
[1723981010525,1.42904143,59952.0,59951.0,0.0002]
[1723981010931,1.48132866,59952.0,59951.0,0.1451]
[1723981011136,1.38174143,59952.0,59951.0,0.062]
[1723981011335,1.45639626,59952.0,59951.0,0.062]
[1723981012289,1.45349483,59952.0,59951.0,0.062]
[1723981012484,1.22860449,59952.0,59951.0,0.062]
[1723981012700,0.94532,59952.0,59951.0,0.1451]
[1723981013460,0.93132,59952.0,59951.0,0.1451]
[1723981014100,0.94532,59952.0,59951.0,0.1451]
[1723981016245,0.94532,59952.0,59951.0,0.0002]
[1723981017652,0.94532,59952.0,59951.0,0.1451]
[1723981019472,1.17884,59952.0,59951.0,0.0002]
[1723981019675,0.94532,59952.0,59951.0,0.0002]
[1723981020082,0.954395,59952.0,59951.0,0.0011075]
[1723981020912,0.954395,59952.0,59951.0,0.1460075]
[1723981024803,0.954395,59952.0,59951.0,0.0011075]
[1723981025875,1.187915,59952.0,59951.0,0.0011075]
[1723981026070,0.954395,59952.0,59951.0,0.0011075]
[1723981026301,1.00414788,59952.0,59951.0,0.0011075]
[1723981026512,1.31886012,59952.0,59951.0,0.0011075]
[1723981026721,1.269115,59952.0,59951.0,0.0011075]
[1723981026929,1.31886127,59952.0,59951.0,0.0011075]
[1723981027741,1.269115,59952.0,59951.0,0.0011075]
[1723981027973,1.56818495,59952.0,59951.0,0.0011075]
[1723981028173,1.196658,59951.0,59950.0,5e-07]
[1723981028387,1.530182,59951.0,59950.0,5e-07]
[1723981028798,1.85188961,59951.0,59950.0,5e-07]
[1723981029000,1.61736561,59951.0,59950.0,5e-07]
[1723981029219,1.530182,59951.0,59950.0,5e-07]
[1723981029424,1.67936888,59951.0,59950.0,5e-07]
[1723981029630,1.91289288,59951.0,59950.0,5e-07]
[1723981029831,1.91489288,59951.0,59950.0,5e-07]
[1723981030013,1.765706,59951.0,59950.0,5e-07]
[1723981030237,1.93926054,59951.0,59950.0,5e-07]
[1723981030441,1.95326054,59951.0,59950.0,5e-07]
[1723981030615,2.10237779,59951.0,59950.0,5e-07]
[1723981030751,1.94826514,59951.0,59950.0,5e-07]
[1723981030962,1.93426514,59951.0,59950.0,5e-07]
[1723981031155,1.94826514,59951.0,59950.0,5e-07]
[1723981031350,1.81314789,59951.0,59950.0,5e-07]
[1723981031562,1.73317843,59951.0,59950.0,5e-07]
[1723981031789,1.73217843,59951.0,59950.0,5e-07]
[1723981031967,1.73217843,59951.0,59931.0,0.0002]
[1723981031968,0.03,59922.0,59914.0,0.59368864]
[1723981032172,0.03,59922.0,59900.0,0.07540863]
[1723981032173,0.03,59907.0,59900.0,0.000531]
[1723981032388,1.281627,59907.0,59900.0,0.076631]
[1723981032606,1.281627,59907.0,59900.0,0.000531]
[1723981032607,1.615322,59907.0,59900.0,0.000531]
[1723981033108,1.381627,59907.0,59900.0,0.000531]
[1723981033335,1.39200393,59907.0,59900.0,0.000531]
[1723981033834,1.39200393,59907.0,59902.0,0.0761]
[1723981033835,1.15830893,59907.0,59902.0,0.0761]
[1723981034048,1.147932,59907.0,59902.0,0.0761]
[1723981034267,0.961932,59907.0,59902.0,0.0761]
[1723981034488,0.494542,59907.0,59906.0,0.0743811]
[1723981034708,0.350542,59907.0,59906.0,0.0743811]
[1723981034964,0.364542,59907.0,59906.0,0.0743811]
[1723981035456,0.598237,59907.0,59906.0,0.0743811]
[1723981035685,0.364542,59907.0,59906.0,0.1504811]
[1723981036156,0.364542,59907.0,59900.0,0.000531]
[1723981036157,0.261695,59907.0,59900.0,0.000531]
[1723981036400,1.018013,59901.0,59900.0,0.000531]